fUSD/lending_fUSD_20250828
["ID","MTS","AMOUNT","RATE_DAILY","PERIOD"]
[381781134,1756344675883,-400.0,0.00018338,2]
[381781135,1756344675892,-400.0,0.00018338,2]
[381781136,1756344675902,-400.0,0.00018338,2]
[381781137,1756344675911,-742.09,0.00018338,2]
[381781138,1756344675922,-620.78,0.00018338,2]
[381781139,1756344675931,-400.0,0.00018338,2]
[381781140,1756344675940,-483.08,0.00018338,2]
[381781141,1756344675949,-400.0,0.00018338,2]
[381781142,1756344675958,-453.22,0.00018338,2]
[381781143,1756344675968,-448.87,0.00018338,2]
[381781144,1756344675977,-2221.62,0.00018338,2]
[381781145,1756344675988,-1462.51,0.00018338,2]
[381781146,1756344675997,-400.0,0.00018338,2]
[381781147,1756344676008,-409.22,0.00018338,2]
[381781148,1756344676018,-400.0,0.00018338,2]
[381781149,1756344676027,-482.37,0.00018338,2]
[381781150,1756344676037,-7992.96,0.00018338,2]
[381781151,1756344676047,-670.66,0.00018338,2]
[381781152,1756344676056,-400.0,0.00018338,2]
[381781153,1756344676066,-543.31,0.00018338,2]
[381781154,1756344676076,-400.0,0.00018338,2]
[381781155,1756344676086,-3387.36,0.00018338,2]
[381781156,1756344676095,-400.0,0.00018338,2]
[381781157,1756344676106,-499.76,0.00018338,2]
[381781158,1756344676117,-400.0,0.00018338,2]
[381781159,1756344676127,-400.0,0.00018338,2]
[381781160,1756344676138,-412.86,0.00018338,2]
[381781161,1756344676148,-525.97,0.00018338,2]
[381781162,1756344676157,-542.38,0.00018338,2]
[381781163,1756344676168,-300.0,0.00018339,2]
[381781164,1756344676178,-400.0,0.00018339,2]
[381781165,1756344676187,-400.0,0.00018339,2]
[381781166,1756344676197,-400.0,0.00018339,2]
[381781167,1756344676208,-418.1,0.00018339,2]
[381781168,1756344676218,-400.0,0.00018339,2]
[381781169,1756344676227,-400.0,0.00018339,2]
[381781170,1756344676236,-400.0,0.00018339,2]
[381781171,1756344676250,-400.0,0.00018339,2]
[381781172,1756344676261,-400.0,0.00018339,2]
[381781173,1756344676271,-400.0,0.00018339,2]
[381781174,1756344676281,-400.0,0.00018339,2]
[381781175,1756344676290,-400.0,0.00018339,2]
[381781176,1756344676301,-400.0,0.00018339,2]
[381781177,1756344676310,-400.0,0.00018339,2]
[381781178,1756344676320,-400.0,0.00018339,2]
[381781179,1756344676329,-400.0,0.00018339,2]
[381781180,1756344676340,-400.0,0.00018339,2]
[381781181,1756344676349,-400.0,0.00018339,2]
[381781182,1756344676359,-400.0,0.00018339,2]
[381781183,1756344676369,-400.0,0.00018339,2]
[381781184,1756344676379,-410.04,0.00018339,2]
[381781185,1756344676393,-400.0,0.00018339,2]
[381781186,1756344676403,-547.72594747,0.00018339,2]
[381781187,1756344676413,-400.0,0.00018339,2]
[381781188,1756344676423,-400.0,0.00018339,2]
[381781189,1756344676433,-400.0,0.00018339,2]
[381781190,1756344676443,-400.0,0.00018339,2]
[381781191,1756344676453,-400.0,0.00018339,2]
[381781192,1756344676463,-438.46272367,0.00018339,2]
[381781193,1756344676473,-400.0,0.00018339,2]
[381781194,1756344676482,-400.0,0.00018339,2]
[381781195,1756344676492,-457.43,0.00018339,2]
[381781196,1756344676501,-400.0,0.00018339,2]
[381781197,1756344676510,-400.0,0.00018339,2]
[381781198,1756344676519,-400.0,0.00018339,2]
[381781199,1756344676528,-400.0,0.00018339,2]
[381781200,1756344676538,-400.0,0.00018339,2]
[381781201,1756344676547,-400.0,0.00018339,2]
[381781202,1756344676557,-400.0,0.00018339,2]
[381781203,1756344676566,-400.0,0.00018339,2]
[381781204,1756344676575,-400.0,0.00018339,2]
[381781205,1756344676584,-400.0,0.00018339,2]
[381781206,1756344676593,-400.0,0.00018339,2]
[381781207,1756344676603,-400.0,0.00018339,2]
[381781208,1756344676613,-400.0,0.00018339,2]
[381781209,1756344676622,-400.0,0.00018339,2]
[381781210,1756344676631,-400.0,0.00018339,2]
[381781211,1756344676640,-400.0,0.00018339,2]
[381781212,1756344676650,-400.0,0.00018339,2]
[381781213,1756344676659,-400.0,0.00018339,2]
[381781214,1756344676669,-400.0,0.00018339,2]
[381781215,1756344676678,-400.0,0.00018339,2]
[381781216,1756344676687,-400.0,0.00018339,2]
[381781217,1756344676696,-482.84833092,0.00018339,2]
[381781218,1756344676706,-400.0,0.00018339,2]
[381781219,1756344676715,-400.0,0.00018339,2]
[381781220,1756344676724,-400.0,0.00018339,2]
[381781221,1756344676734,-400.0,0.00018339,2]
[381781222,1756344676744,-471.15,0.00018339,2]
[381781223,1756344676753,-400.0,0.00018339,2]
[381781224,1756344676762,-400.0,0.00018339,2]
[381781225,1756344676771,-428.13,0.00018339,2]
[381781226,1756344676780,-400.0,0.00018339,2]
[381781227,1756344676789,-400.0,0.00018339,2]
[381781228,1756344676799,-400.0,0.00018339,2]
[381781229,1756344676808,-400.0,0.00018339,2]
[381781230,1756344676817,-400.0,0.00018339,2]
[381781231,1756344676830,-854.73,0.00018339,2]
[381781232,1756344676839,-400.0,0.00018339,2]
[381781233,1756344676848,-400.0,0.00018339,2]
[381781234,1756344676858,-400.0,0.00018339,2]
[381781235,1756344676867,-428.94,0.00018339,2]
[381781236,1756344676876,-452.5,0.00018339,2]
[381781237,1756344676885,-597.56,0.00018339,2]
[381781238,1756344676894,-400.0,0.00018339,2]
[381781239,1756344676903,-400.0,0.00018339,2]
[381781240,1756344676913,-400.0,0.00018339,2]
[381781241,1756344676923,-400.0,0.00018339,2]
[381781242,1756344676932,-400.0,0.00018339,2]
[381781243,1756344676942,-400.0,0.00018339,2]
[381781244,1756344676951,-400.0,0.00018339,2]
[381781245,1756344676960,-400.0,0.00018339,2]
[381781246,1756344676969,-400.0,0.00018339,2]
[381781247,1756344676978,-400.0,0.00018339,2]
[381781248,1756344676987,-164.77,0.00018339,2]
[381781249,1756344676996,-400.0,0.00018339,2]
[381781250,1756344677006,-421.47,0.00018339,2]
[381781251,1756344677015,-400.0,0.00018339,2]
[381781252,1756344677024,-400.0,0.00018339,2]
[381781253,1756344677033,-438.02643472,0.00018339,2]
[381781254,1756344677042,-400.0,0.00018339,2]
[381781255,1756344677056,-550.91,0.00018339,2]
[381781256,1756344677065,-400.0,0.00018339,2]
[381781257,1756344677074,-400.0,0.00018339,2]
[381781258,1756344677086,-400.0,0.00018339,2]
[381781259,1756344677095,-400.0,0.00018339,2]
[381781260,1756344677104,-400.0,0.00018339,2]
[381781261,1756344677113,-400.0,0.00018339,2]
[381781262,1756344677123,-453.5,0.00018339,2]
[381781263,1756344677132,-413.84,0.00018339,2]
[381781264,1756344677142,-400.0,0.00018339,2]
[381781265,1756344677151,-400.0,0.00018339,2]
[381781266,1756344677161,-400.0,0.00018339,2]
[381781267,1756344677171,-400.0,0.00018339,2]
[381781268,1756344677180,-400.0,0.00018339,2]
[381781269,1756344677190,-400.0,0.00018339,2]
[381781270,1756344677513,-400.0,0.00018339,2]
[381781271,1756344677524,-400.0,0.00018339,2]
[381781272,1756344677534,-457.81,0.00018339,2]
[381781273,1756344677543,-400.0,0.00018339,2]
[381781274,1756344677552,-400.0,0.00018339,2]
[381781275,1756344677561,-400.0,0.00018339,2]
[381781276,1756344677570,-400.0,0.00018339,2]
[381781277,1756344677579,-400.0,0.00018339,2]
[381781278,1756344677588,-1785.22,0.00018339,2]
[381781279,1756344677598,-400.0,0.00018339,2]
[381781280,1756344677607,-400.0,0.00018339,2]
[381781281,1756344677616,-400.0,0.00018339,2]
[381781282,1756344677625,-564.94,0.00018339,2]
[381781283,1756344677635,-400.0,0.00018339,2]
[381781284,1756344677644,-777.86,0.00018339,2]
[381781285,1756344677654,-664.01,0.00018339,2]
[381781286,1756344677663,-400.0,0.00018339,2]
[381781287,1756344677672,-400.0,0.00018339,2]
[381781288,1756344677682,-754.75,0.00018339,2]
[381781289,1756344677691,-694.65,0.00018339,2]
[381781290,1756344677700,-400.0,0.00018339,2]
[381781291,1756344677709,-400.0,0.00018339,2]
[381781292,1756344677719,-1323.44,0.00018339,2]
[381781293,1756344677727,-400.0,0.00018339,2]
[381781294,1756344677736,-400.0,0.00018339,2]
[381781295,1756344677746,-400.0,0.00018339,2]
[381781296,1756344677755,-400.0,0.00018339,2]
[381781297,1756344677765,-490.34517098,0.00018339,2]
[381781298,1756344677775,-400.0,0.00018339,2]
[381781299,1756344677785,-2134.26,0.00018339,2]
[381781300,1756344677794,-562.22,0.00018339,2]
[381781301,1756344677804,-400.0,0.00018339,2]
[381781302,1756344677813,-400.0,0.00018339,2]
[381781303,1756344677823,-400.0,0.00018339,2]
[381781304,1756344677832,-400.0,0.00018339,2]
[381781305,1756344677841,-368.703537,0.00018339,2]
[381781306,1756344677851,-400.0,0.00018339,2]
[381781307,1756344677860,-407.02,0.00018339,2]
[381781308,1756344677869,-400.0,0.00018339,2]
[381781309,1756344677878,-400.0,0.00018339,2]
[381781310,1756344677887,-413.64,0.00018339,2]
[381781311,1756344677896,-400.0,0.00018339,2]
[381781312,1756344677905,-400.0,0.00018339,2]
[381781313,1756344677915,-400.0,0.00018339,2]
[381781314,1756344677924,-527.0589318,0.00018339,2]
[381781315,1756344677933,-190.67898061,0.00018339,2]
[381781316,1756344677942,-400.0,0.00018339,2]
[381781317,1756344677951,-504.15,0.00018339,2]
[381781318,1756344677961,-741.06,0.00018339,2]
[381781319,1756344677970,-400.0,0.00018339,2]
[381781320,1756344677979,-400.0,0.00018339,2]
[381781321,1756344677988,-400.0,0.00018339,2]
[381781322,1756344677997,-400.0,0.00018339,2]
[381781323,1756344678007,-400.0,0.00018339,2]
[381781324,1756344678016,-445.96,0.00018339,2]
[381781325,1756344678025,-400.0,0.00018339,2]
[381781326,1756344678035,-400.0,0.00018339,2]
[381781327,1756344678044,-400.0,0.00018339,2]
[381781328,1756344678053,-400.0,0.00018339,2]
[381781329,1756344678063,-400.0,0.00018339,2]
[381781330,1756344678072,-400.0,0.00018339,2]
[381781331,1756344678081,-400.76,0.00018339,2]
[381781332,1756344678091,-400.0,0.00018339,2]
[381781333,1756344678101,-592.16,0.00018339,2]
[381781334,1756344678110,-400.0,0.00018339,2]
[381781335,1756344678119,-593.45,0.0001834,2]
[381781336,1756344678128,-400.0,0.0001834,2]
[381781337,1756344678138,-400.0,0.0001834,2]
[381781338,1756344678147,-400.0,0.0001834,2]
[381781339,1756344678156,-400.0,0.0001834,2]
[381781340,1756344678166,-400.0,0.0001834,2]
[381781341,1756344678175,-201.0,0.0001835,2]
[381781342,1756344678185,-79307.47,0.00018356,2]
[381781343,1756344678194,-176.09762001,0.00018368,2]
[381781344,1756344678205,-500.0,0.00018392,2]
[381781345,1756344678214,-267.46074303,0.00018396,2]
[381781346,1756344678225,-260.0,0.00018404,2]
[381781347,1756344678234,-172.3098986,0.00018456,2]
[381781348,1756344678244,-900.0,0.00018459,2]
[381781349,1756344678254,-900.0,0.00018459,2]
[381781350,1756344678263,-900.0,0.00018459,2]
[381781351,1756344678272,-900.0,0.00018459,2]
[381781352,1756344678282,-900.0,0.00018459,2]
[381781353,1756344678291,-900.0,0.00018459,2]
[381781354,1756344678300,-900.0,0.00018459,2]
[381781355,1756344678310,-900.0,0.00018459,2]
[381781356,1756344678320,-172.3423623,0.00018475,2]
[381781357,1756344678330,-16725.77727198,0.000185,2]
[381781358,1756344678339,-500.0,0.000185,2]
[381781359,1756344678349,-500.0,0.000185,2]
[381781360,1756344678358,-505.0,0.000185,2]
[381781361,1756344678369,-156.96,0.0001852,2]
[381781362,1756344678378,-453.76773958,0.00018521,2]
[381781363,1756344678391,-300.0,0.00018534,2]
[381781364,1756344678401,-593.25874845,0.00018573,2]
[381781365,1756344679056,-151.0,0.00016968,2]
[381781366,1756344679066,-152.862465,0.00016969,2]
[381781367,1756344679076,-400.0,0.00017242,2]
[381781368,1756344679085,-196.137535,0.00017516,2]
[381781369,1756344679109,-151.69980095,0.00016694,2]
[381781370,1756344679119,-203.862465,0.00017516,2]
[381781371,1756344679129,-400.0,0.0001779,2]
[381781372,1756344679138,-400.0,0.0001779,2]
[381781373,1756344679149,-400.0,0.00018064,2]
[381781374,1756344679158,-120.83373405,0.00018064,2]
[381781375,1756344679169,-269.96250025,0.00018064,2]
[381781376,1756344679590,-400.0,0.00016931,2]
[381781377,1756344679600,-400.0,0.00017205,2]
[381781378,1756344679610,-400.0,0.00017479,2]
[381781379,1756344679620,-33.35525829,0.00017693,2]
[381781380,1756344679700,-2363.81961018,0.00017693,2]
[381781381,1756344679728,-190.64,0.00013699,2]
[381781382,1756344679738,-1758.82513153,0.00017693,2]
[381781383,1756344679747,-9.2037657,0.00018064,2]
[381781384,1756344679756,-400.0,0.00018337,2]
[381781385,1756344679765,-400.0,0.00018338,2]
[381781386,1756344679774,-400.0,0.00018338,2]
[381781387,1756344679783,-2947.11759111,0.00018573,2]
[381781388,1756344679792,-575.59,0.00018575,2]
[381781389,1756344679801,-400.0,0.00018575,2]
[381781390,1756344679810,-400.0,0.00018575,2]
[381781391,1756344679819,-469.07,0.00018575,2]
[381781392,1756344679828,-2019.01,0.00018575,2]
[381781393,1756344679837,-400.0,0.00018575,2]
[381781394,1756344679845,-400.0,0.00018575,2]
[381781395,1756344679856,-400.0,0.00018575,2]
[381781396,1756344679865,-260.0,0.00018585,2]
[381781397,1756344679874,-150.0,0.00018597,2]
[381781398,1756344679883,-1285.3365425,0.00018598,2]
[381781399,1756344679892,-775.71,0.000186,2]
[381781400,1756344679901,-400.0,0.00018611,2]
[381781401,1756344679911,-400.0,0.00018611,2]
[381781402,1756344679922,-400.0,0.00018611,2]
[381781403,1756344679930,-359.49696916,0.00018611,2]
[381781404,1756344701188,151.0,0.0003,120]
[381781408,1756344804402,-151.0,0.00014,3]
[381781409,1756344821941,-151.0,0.00014,3]
[381781410,1756344846013,150.49844768,0.00030136,120]
[381781413,1756344957240,257.68,0.00023,30]
[381781415,1756345165260,1002.4,0.0003,120]
[381781421,1756345527107,-181.34,0.00013699,2]
[381781424,1756345628234,177.91,8.104e-05,2]
[381781425,1756345683416,-843.969,0.00014699,2]
[381781426,1756345685666,-222.9535463,0.00014699,2]
[381781427,1756345685897,-457.0774537,0.00014699,2]
[381781428,1756345685921,-151.40118742,0.00015965,2]
[381781429,1756345685948,-110.63635888,0.00016061,2]
[381781431,1756345806869,920.85,0.00030137,120]
[381781435,1756345831410,-140.36364112,0.00016061,2]
[381781436,1756345831420,-160.0,0.00016157,7]
[381781437,1756345831430,-250.0,0.00016169,2]
[381781438,1756345831439,-666.0,0.00016171,3]
[381781439,1756345831449,-1000.0,0.00016327,2]
[381781440,1756345831458,-251.0,0.00016347,2]
[381781441,1756345831466,-310.3374,0.00016595,2]
[381781442,1756345831476,-154.0,0.00016693,2]
[381781443,1756345831487,-300.0,0.00016693,2]
[381781444,1756345831496,-300.0,0.00016693,2]
[381781445,1756345831505,-300.0,0.00016693,2]
[381781446,1756345831514,-1200.0,0.00016693,2]
[381781447,1756345831523,-400.0,0.00016694,2]
[381781448,1756345831533,-400.0,0.00016694,2]
[381781449,1756345831543,-391.10587468,0.00016694,2]
[381781450,1756345831554,-400.0,0.00016694,2]
[381781451,1756345831564,-400.0,0.00016694,2]
[381781452,1756345831574,-400.0,0.00016694,2]
[381781453,1756345831584,-400.0,0.00016694,2]
[381781454,1756345831593,-400.0,0.00016694,2]
[381781455,1756345831603,-1652.71,0.00016694,2]
[381781456,1756345831612,-400.0,0.00016694,2]
[381781457,1756345831622,-400.0,0.00016694,2]
[381781458,1756345831631,-400.0,0.00016694,2]
[381781459,1756345831640,-444.12,0.00016694,2]
[381781460,1756345831649,-463.26,0.00016694,2]
[381781461,1756345831658,-400.0,0.00016694,2]
[381781462,1756345831667,-199.27458564,0.00016694,2]
[381781463,1756345831677,-400.0,0.00016694,2]
[381781464,1756345831687,-467.80815022,0.00016694,2]
[381781465,1756345831697,-386.31965044,0.00016694,2]
[381781466,1756345831706,-400.0,0.00016694,2]
[381781467,1756345831716,-400.0,0.00016694,2]
[381781468,1756345831726,-400.0,0.00016694,2]
[381781469,1756345831736,-1048.29,0.00016695,2]
[381781470,1756345831745,-5662.54,0.00016695,2]
[381781471,1756345831755,-2404.55,0.00016695,2]
[381781472,1756345831768,-400.0,0.00016695,2]
[381781473,1756345831778,-447.04,0.00016695,2]
[381781475,1756345831787,-400.0,0.00016695,2]
[381781476,1756345831796,-1621.43,0.00016695,2]
[381781478,1756345831806,-479.03,0.00016695,2]
[381781480,1756345831816,-400.0,0.00016695,2]
[381781481,1756345831827,-504.05,0.00016695,2]
[381781482,1756345831836,-400.0,0.00016695,2]
[381781483,1756345831846,-400.0,0.00016695,2]
[381781484,1756345831855,-153.57281936,0.00016831,2]
[381781485,1756345831867,-201.52331818,0.00016921,2]
[381781486,1756345831876,-151.0,0.00016921,2]
[381781487,1756345831885,-151.0,0.00016921,2]
[381781488,1756345831895,-151.0,0.00016921,2]
[381781489,1756345831905,-151.0,0.00016921,2]
[381781490,1756345831915,-151.0,0.00016921,2]
[381781491,1756345831924,-151.0,0.00016921,2]
[381781492,1756345831933,-151.0,0.00016921,2]
[381781493,1756345831943,-151.0,0.00016921,2]
[381781494,1756345831953,-151.0,0.00016921,2]
[381781495,1756345831964,-151.0,0.00016921,2]
[381781496,1756345831974,-151.0,0.00016921,2]
[381781497,1756345831983,-151.0,0.00016921,2]
[381781498,1756345831995,-151.0,0.00016921,2]
[381781499,1756345832005,-405.64461045,0.00016931,2]
[381781500,1756345832015,-400.0,0.00016931,2]
[381781501,1756345832024,-400.0,0.00016931,2]
[381781502,1756345832035,-416.40065942,0.00016931,2]
[381781503,1756345832043,-420.98680956,0.00016931,2]
[381781504,1756345832052,-407.96959038,0.00016931,2]
[381781505,1756345832062,-405.21896929,0.00016931,2]
[381781506,1756345832072,-404.72346845,0.00016931,2]
[381781507,1756345832081,-403.39820468,0.00016931,2]
[381781508,1756345832091,-403.30310205,0.00016931,2]
[381781509,1756345832103,-407.00143375,0.00016931,2]
[381781510,1756345832112,-406.78519555,0.00016931,2]
[381781511,1756345832121,-500.0,0.00016931,2]
[381781512,1756345832131,-404.13432567,0.00016931,2]
[381781513,1756345832140,-400.0,0.00016931,2]
[381781514,1756345832151,-400.0,0.00016931,2]
[381781515,1756345832163,-441.42876472,0.00016931,2]
[381781516,1756345832174,-400.0,0.00016931,2]
[381781517,1756345832183,-507.1569929,0.00016931,2]
[381781518,1756345832192,-414.00159144,0.00016931,2]
[381781519,1756345832202,-400.0,0.00016931,2]
[381781520,1756345832211,-416.0600863,0.00016931,2]
[381781521,1756345832221,-409.7590344,0.00016931,2]
[381781522,1756345832230,-404.49540661,0.00016931,2]
[381781523,1756345832239,-406.11363705,0.00016931,2]
[381781524,1756345832249,-405.02781828,0.00016931,2]
[381781525,1756345832258,-409.01575865,0.00016931,2]
[381781526,1756345832267,-400.0,0.00016931,2]
[381781527,1756345832276,-400.0,0.00016931,2]
[381781528,1756345832285,-400.0,0.00016931,2]
[381781529,1756345832294,-418.37334153,0.00016931,2]
[381781530,1756345832303,-435.35938181,0.00016931,2]
[381781531,1756345832312,-508.51535742,0.00016931,2]
[381781532,1756345832321,-400.0,0.00016931,2]
[381781533,1756345832331,-405.36596445,0.00016931,2]
[381781534,1756345832340,-400.0,0.00016931,2]
[381781535,1756345832350,-407.61017949,0.00016931,2]
[381781536,1756345832359,-407.06710321,0.00016931,2]
[381781537,1756345832368,-476.61,0.00016931,2]
[381781538,1756345832378,-400.0,0.00016931,2]
[381781539,1756345832387,-400.0,0.00016931,2]
[381781540,1756345832396,-403.741871,0.00016931,2]
[381781541,1756345832405,-400.0,0.00016931,2]
[381781542,1756345832415,-404.41757394,0.00016931,2]
[381781543,1756345832426,-414.86759683,0.00016931,2]
[381781544,1756345832436,-418.98790405,0.00016931,2]
[381781545,1756345832683,-404.65117999,0.00016931,2]
[381781546,1756345832694,-412.82191388,0.00016931,2]
[381781547,1756345832703,-407.72409317,0.00016931,2]
[381781548,1756345832712,-178.35693911,0.00016931,2]
[381781549,1756345832721,-404.68764259,0.00016931,2]
[381781550,1756345832731,-400.0,0.00016931,2]
[381781551,1756345832739,-407.51796423,0.00016931,2]
[381781552,1756345832749,-400.0,0.00016931,2]
[381781553,1756345832758,-400.0,0.00016931,2]
[381781554,1756345832770,-416.46744458,0.00016931,2]
[381781555,1756345832779,-408.77873672,0.00016931,2]
[381781556,1756345832788,-403.82226222,0.00016931,2]
[381781557,1756345832797,-400.0,0.00016931,2]
[381781558,1756345832808,-403.14690243,0.00016931,2]
[381781559,1756345832817,-405.47215482,0.00016931,2]
[381781560,1756345832827,-407.65499584,0.00016931,2]
[381781561,1756345832837,-409.01404608,0.00016931,2]
[381781562,1756345832846,-400.0,0.00016931,2]
[381781563,1756345832855,-520.28608144,0.00016931,2]
[381781564,1756345832864,-400.0,0.00016931,2]
[381781565,1756345832873,-461.14586171,0.00016931,2]
[381781566,1756345832882,-426.87221251,0.00016931,2]
[381781567,1756345832891,-405.96155078,0.00016931,2]
[381781568,1756345832900,-411.9188675,0.00016931,2]
[381781569,1756345832908,-440.73,0.00016931,2]
[381781570,1756345832918,-401.44795842,0.00016931,2]
[381781571,1756345832929,-153.57417815,0.00016931,2]
[381781572,1756345832938,-401.67580519,0.00016931,2]
[381781573,1756345832947,-400.0,0.00016931,2]
[381781574,1756345832956,-400.0,0.00016931,2]
[381781575,1756345832965,-400.0,0.00016931,2]
[381781576,1756345832974,-400.0,0.00016931,2]
[381781577,1756345832983,-400.0,0.00016931,2]
[381781578,1756345832992,-400.0,0.00016931,2]
[381781579,1756345833001,-400.0,0.00016931,2]
[381781580,1756345833011,-404.3177358,0.00016931,2]
[381781581,1756345833020,-403.17796755,0.00016931,2]
[381781582,1756345833029,-400.0,0.00016931,2]
[381781583,1756345833040,-400.0,0.00016931,2]
[381781584,1756345833050,-400.0,0.00016931,2]
[381781585,1756345833059,-405.27578138,0.00016931,2]
[381781586,1756345833068,-404.23359815,0.00016931,2]
[381781587,1756345833078,-405.15380915,0.00016931,2]
[381781588,1756345833087,-400.0,0.00016931,2]
[381781589,1756345833096,-407.67986006,0.00016931,2]
[381781590,1756345833106,-400.0,0.00016931,2]
[381781591,1756345833115,-407.45875729,0.00016931,2]
[381781592,1756345833124,-504.90910686,0.00016931,2]
[381781593,1756345833134,-400.0,0.00016931,2]
[381781594,1756345833143,-504.71415012,0.00016931,2]
[381781595,1756345833153,-410.7709089,0.00016931,2]
[381781596,1756345833162,-400.0,0.00016931,2]
[381781597,1756345833172,-400.0,0.00016931,2]
[381781598,1756345833181,-426.54834419,0.00016931,2]
[381781599,1756345833191,-403.57678545,0.00016931,2]
[381781600,1756345833200,-400.0,0.00016931,2]
[381781601,1756345833210,-400.0,0.00016931,2]
[381781602,1756345833219,-420.52224453,0.00016931,2]
[381781603,1756345833229,-527.63129886,0.00016931,2]
[381781604,1756345833239,-405.03957141,0.00016931,2]
[381781605,1756345833249,-420.29786278,0.00016931,2]
[381781606,1756345833258,-400.0,0.00016931,2]
[381781607,1756345833267,-408.45946408,0.00016931,2]
[381781608,1756345833278,-440.91168454,0.00016931,2]
[381781609,1756345833289,-403.72945926,0.00016931,2]
[381781610,1756345833298,-400.0,0.00016931,2]
[381781611,1756345833307,-443.38855672,0.00016931,2]
[381781612,1756345833317,-427.42148416,0.00016931,2]
[381781613,1756345833326,-400.0,0.00016931,2]
[381781614,1756345833335,-400.0,0.00016931,2]
[381781615,1756345833345,-423.71096867,0.00016931,2]
[381781616,1756345833355,-405.97675841,0.00016931,2]
[381781617,1756345833364,-400.0,0.00016931,2]
[381781618,1756345833373,-400.0,0.00016931,2]
[381781619,1756345833382,-288.61653475,0.00016931,2]
[381781620,1756345833404,-111.38346525,0.00016931,2]
[381781621,1756345833413,-400.0,0.00016931,2]
[381781622,1756345833422,-444.45070643,0.00016931,2]
[381781623,1756345833433,-219.23086474,0.00016931,2]
[381781624,1756345833458,-180.76913526,0.00016931,2]
[381781625,1756345833467,-126.1118373,0.00016931,2]
[381781626,1756345833502,-273.8881627,0.00016931,2]
[381781627,1756345833512,-411.14832916,0.00016931,2]
[381781628,1756345833522,-421.69527611,0.00016931,2]
[381781629,1756345833531,-400.0,0.00016931,2]
[381781630,1756345833540,-303.45598883,0.00016931,2]
[381781636,1756345837322,-251.06401117,0.00016931,2]
[381781637,1756345837331,-413.7507962,0.00016931,2]
[381781638,1756345837342,-400.0,0.00016931,2]
[381781639,1756345837351,-400.89033407,0.00016931,2]
[381781640,1756345837361,-423.04792368,0.00016931,2]
[381781641,1756345837370,-516.16562305,0.00016931,2]
[381781642,1756345837379,-400.0,0.00016931,2]
[381781643,1756345837389,-406.24184659,0.00016931,2]
[381781644,1756345837398,-400.0,0.00016931,2]
[381781645,1756345837407,-400.0,0.00016931,2]
[381781646,1756345837417,-205.63946524,0.00016931,2]
[381781659,1756345839458,-194.36053476,0.00016931,2]
[381781660,1756345839467,-116.15999482,0.00016931,2]
[381781661,1756345839616,-283.84000518,0.00016931,2]
[381781662,1756345839626,-400.0,0.00016931,2]
[381781663,1756345839635,-400.0,0.00016931,2]
[381781664,1756345839645,-400.0,0.00016931,2]
[381781665,1756345839655,-418.20478368,0.00016931,2]
[381781666,1756345839664,-400.0,0.00016931,2]
[381781667,1756345839674,-400.0,0.00016931,2]
[381781668,1756345839684,-401.26138299,0.00016931,2]
[381781669,1756345839694,-401.54010856,0.00016931,2]
[381781670,1756345839704,-400.69894235,0.00016931,2]